fUSD/lending_fUSD_20241227
["ID","MTS","AMOUNT","RATE_DAILY","PERIOD"]
[346808799,1735301462818,-1170.67,0.00011158,2]
[346808800,1735301462826,-831.06,0.00011158,2]
[346808801,1735301462835,-500.0,0.00011158,2]
[346808802,1735301462843,-500.0,0.00011158,2]
[346808803,1735301462851,-500.0,0.00011158,2]
[346808804,1735301462858,-825.15,0.00011158,2]
[346808805,1735301462867,-583.46,0.00011158,2]
[346808806,1735301462875,-584.82,0.00011158,2]
[346808807,1735301462883,-1120.85,0.00011158,2]
[346808808,1735301462891,-1050.39,0.00011158,2]
[346808809,1735301462900,-568.42,0.00011158,2]
[346808810,1735301462908,-500.0,0.00011158,2]
[346808811,1735301462917,-653.23,0.00011158,2]
[346808812,1735301462998,-650.37,0.00011158,2]
[346808813,1735301463009,-560.48,0.00011158,2]
[346808814,1735301463019,-500.0,0.00011158,2]
[346808815,1735301463028,-500.0,0.00011158,2]
[346808816,1735301463038,-500.0,0.00011158,2]
[346808817,1735301463048,-500.0,0.00011158,2]
[346808818,1735301463058,-500.0,0.00011158,2]
[346808819,1735301463067,-500.0,0.00011158,2]
[346808820,1735301463077,-500.0,0.00011158,2]
[346808821,1735301463087,-766.86,0.00011158,2]
[346808822,1735301463096,-500.0,0.00011158,2]
[346808823,1735301463108,-500.0,0.00011158,2]
[346808824,1735301463119,-500.0,0.00011158,2]
[346808825,1735301463128,-1050.06,0.00011158,2]
[346808826,1735301463137,-501.64609967,0.00011158,2]
[346808827,1735301463146,-426.41062729,0.00011158,2]
[346808828,1735301463155,-500.0,0.00011158,2]
[346808829,1735301463164,-500.0,0.00011158,2]
[346808830,1735301463174,-500.0,0.00011158,2]
[346808831,1735301463182,-500.0,0.00011158,2]
[346808832,1735301463191,-500.0,0.00011158,2]
[346808833,1735301463201,-246.93909825,0.00011158,2]
[346808834,1735301463211,-500.0,0.00011158,2]
[346808835,1735301463221,-519.32611598,0.00011158,2]
[346808836,1735301463230,-500.0,0.00011158,2]
[346808837,1735301463240,-1398.58,0.00011158,2]
[346808838,1735301463249,-1981.03,0.00011158,2]
[346808839,1735301463259,-500.0,0.00011158,2]
[346808840,1735301463268,-500.0,0.00011158,2]
[346808841,1735301463278,-500.0,0.00011158,2]
[346808842,1735301463287,-500.0,0.00011158,2]
[346808843,1735301463297,-500.0,0.00011158,2]
[346808844,1735301463306,-500.0,0.00011158,2]
[346808845,1735301463315,-1894.62,0.00011158,2]
[346808846,1735301463325,-500.0,0.00011158,2]
[346808847,1735301463334,-1617.52,0.00011158,2]
[346808848,1735301463344,-3089.36,0.00011158,2]
[346808849,1735301463353,-943.22,0.00011158,2]
[346808850,1735301463362,-1114.33,0.00011158,2]
[346808851,1735301463373,-1575.09,0.00011158,2]
[346808852,1735301463382,-500.0,0.00011158,2]
[346808853,1735301463391,-874.1,0.00011158,2]
[346808854,1735301463401,-500.0,0.00011158,2]
[346808855,1735301463411,-500.0,0.00011158,2]
[346808856,1735301463422,-500.0,0.00011158,2]
[346808857,1735301463432,-633.41,0.00011158,2]
[346808858,1735301463443,-2661.36,0.00011158,2]
[346808859,1735301463453,-500.0,0.00011158,2]
[346808860,1735301463463,-1567.27,0.00011158,2]
[346808861,1735301463473,-550.64,0.00011158,2]
[346808862,1735301463483,-500.0,0.00011158,2]
[346808863,1735301463492,-500.0,0.00011158,2]
[346808864,1735301463502,-500.0,0.00011158,2]
[346808865,1735301463512,-500.0,0.00011158,2]
[346808866,1735301463522,-1345.68,0.00011158,2]
[346808867,1735301463531,-1101.33,0.00011158,2]
[346808868,1735301463541,-1824.97,0.00011158,2]
[346808869,1735301463551,-642.22,0.00011158,2]
[346808870,1735301463561,-500.0,0.00011158,2]
[346808871,1735301463571,-1993.96,0.00011158,2]
[346808872,1735301463581,-500.0,0.00011158,2]
[346808873,1735301463591,-500.0,0.00011158,2]
[346808874,1735301463601,-823.68,0.00011158,2]
[346808875,1735301463611,-2353.94,0.00011158,2]
[346808876,1735301463622,-500.0,0.00011158,2]
[346808877,1735301463632,-500.0,0.00011158,2]
[346808878,1735301463642,-500.0,0.00011158,2]
[346808879,1735301463652,-500.0,0.00011158,2]
[346808880,1735301463662,-553.95487501,0.00011158,2]
[346808881,1735301463671,-1313.26,0.00011158,2]
[346808882,1735301463681,-500.0,0.00011158,2]
[346808883,1735301463691,-2776.47,0.00011158,2]
[346808884,1735301463701,-500.0,0.00011158,2]
[346808885,1735301463710,-500.0,0.00011158,2]
[346808886,1735301463719,-500.0,0.00011158,2]
[346808887,1735301463728,-500.0,0.00011158,2]
[346808888,1735301463738,-500.0,0.00011158,2]
[346808889,1735301463747,-1969.09,0.00011158,2]
[346808890,1735301463757,-500.0,0.00011158,2]
[346808891,1735301463767,-1083.91,0.00011158,2]
[346808892,1735301463777,-500.0,0.00011158,2]
[346808893,1735301463786,-500.0,0.00011158,2]
[346808894,1735301463796,-500.0,0.00011158,2]
[346808895,1735301463806,-500.0,0.00011158,2]
[346808896,1735301463816,-500.0,0.00011158,2]
[346808897,1735301463826,-500.0,0.00011158,2]
[346808898,1735301463836,-500.0,0.00011158,2]
[346808899,1735301463846,-500.0,0.00011158,2]
[346808900,1735301463855,-2253.52,0.00011158,2]
[346808901,1735301463867,-500.0,0.00011158,2]
[346808902,1735301463877,-484.43177115,0.00011158,2]
[346808903,1735301463887,-489.56790753,0.00011158,2]
[346808904,1735301463897,-733.32,0.00011158,2]
[346808905,1735301463907,-500.0,0.00011158,2]
[346808906,1735301463916,-1310.14,0.00011158,2]
[346808907,1735301463926,-500.0,0.00011158,2]
[346808908,1735301463936,-500.0,0.00011158,2]
[346808909,1735301463946,-500.0,0.00011158,2]
[346808910,1735301463955,-500.0,0.00011158,2]
[346808911,1735301463965,-1373.96,0.00011158,2]
[346808912,1735301463975,-543.66,0.00011158,2]
[346808913,1735301463986,-500.0,0.00011158,2]
[346808914,1735301463996,-502.88817408,0.00011158,2]
[346808915,1735301464006,-500.0,0.00011158,2]
[346808916,1735301464016,-500.0,0.00011158,2]
[346808917,1735301464025,-500.0,0.00011158,2]
[346808918,1735301464035,-1519.47,0.00011158,2]
[346808919,1735301464044,-805.02,0.00011158,2]
[346808920,1735301464054,-875.61,0.00011158,2]
[346808921,1735301464063,-500.0,0.00011158,2]
[346808922,1735301464073,-1719.22,0.00011158,2]
[346808923,1735301464083,-500.0,0.00011158,2]
[346808924,1735301464092,-500.0,0.00011158,2]
[346808925,1735301464104,-503.5936642,0.00011158,2]
[346808926,1735301464115,-500.0,0.00011158,2]
[346808927,1735301464126,-500.0,0.00011158,2]
[346808928,1735301464136,-801.22,0.00011158,2]
[346808929,1735301464147,-801.22,0.00011158,2]
[346808930,1735301464156,-213.43055584,0.00011158,2]
[346808931,1735301464166,-500.0,0.00011158,2]
[346808932,1735301464176,-1773.34,0.00011158,2]
[346808933,1735301464186,-529.14,0.00011158,2]
[346808934,1735301464196,-376.18326736,0.00011158,2]
[346808935,1735301464206,-500.0,0.00011158,2]
[346808936,1735301464215,-500.0,0.00011158,2]
[346808937,1735301464225,-500.0,0.00011158,2]
[346808938,1735301464234,-2487.82,0.00011158,2]
[346808939,1735301464244,-952.3,0.00011158,2]
[346808940,1735301464253,-1254.05,0.00011158,2]
[346808941,1735301464263,-500.0,0.00011158,2]
[346808942,1735301464274,-500.0,0.00011158,2]
[346808943,1735301464284,-500.0,0.00011158,2]
[346808944,1735301464294,-1393.3,0.00011158,2]
[346808945,1735301464304,-718.1,0.00011158,2]
[346808946,1735301464313,-500.0,0.00011158,2]
[346808947,1735301464324,-500.0,0.00011158,2]
[346808948,1735301464334,-1709.43,0.00011158,2]
[346808949,1735301464344,-500.0,0.00011158,2]
[346808950,1735301464354,-1485.68,0.00011158,2]
[346808951,1735301464364,-500.0,0.00011158,2]
[346808952,1735301464375,-500.0,0.00011158,2]
[346808953,1735301464385,-264.32142397,0.00011158,2]
[346808954,1735301464395,-2495.06,0.00011158,2]
[346808955,1735301464405,-500.0,0.00011158,2]
[346808956,1735301464415,-1619.14,0.00011158,2]
[346808957,1735301464426,-500.0,0.00011158,2]
[346808958,1735301464436,-1604.56,0.00011158,2]
[346808959,1735301464446,-1107.28,0.00011158,2]
[346808960,1735301464456,-1599.43,0.00011158,2]
[346808961,1735301464466,-605.25,0.00011158,2]
[346808962,1735301464476,-879.82,0.00011158,2]
[346808963,1735301464486,-1323.74,0.00011158,2]
[346808964,1735301464496,-1729.82,0.00011158,2]
[346808965,1735301464505,-567.59,0.00011158,2]
[346808966,1735301464514,-500.0,0.00011158,2]
[346808967,1735301464523,-3170.39,0.00011158,2]
[346808968,1735301464532,-1809.75,0.00011158,2]
[346808969,1735301464541,-500.0,0.00011158,2]
[346808970,1735301464551,-905.37,0.00011158,2]
[346808971,1735301464560,-2097.88,0.00011158,2]
[346808972,1735301464569,-500.0,0.00011158,2]
[346808973,1735301464578,-641.16,0.00011158,2]
[346808974,1735301464587,-500.0,0.00011158,2]
[346808975,1735301464597,-2118.44,0.00011158,2]
[346808976,1735301464606,-500.0,0.00011158,2]
[346808977,1735301464617,-500.0,0.00011158,2]
[346808978,1735301464627,-500.0,0.00011158,2]
[346808979,1735301464636,-2783.44,0.00011158,2]
[346808980,1735301464646,-500.0,0.00011158,2]
[346808981,1735301464656,-500.0,0.00011158,2]
[346808982,1735301464665,-2847.31,0.00011158,2]
[346808983,1735301464674,-1931.04,0.00011158,2]
[346808984,1735301464685,-500.0,0.00011158,2]
[346808985,1735301464694,-500.0,0.00011158,2]
[346808986,1735301464703,-2488.92,0.00011158,2]
[346808987,1735301464712,-500.0,0.00011158,2]
[346808988,1735301464721,-500.0,0.00011158,2]
[346808989,1735301464730,-1024.28,0.00011158,2]
[346808990,1735301464740,-500.0,0.00011158,2]
[346808991,1735301464749,-500.0,0.00011158,2]
[346808992,1735301464759,-2069.09,0.00011158,2]
[346808993,1735301464768,-1259.74,0.00011158,2]
[346808994,1735301464777,-2128.19,0.00011158,2]
[346808995,1735301464787,-500.0,0.00011158,2]
[346808996,1735301464796,-2390.5,0.00011158,2]
[346808997,1735301464805,-1783.05,0.00011158,2]
[346808998,1735301464814,-511.27703423,0.00011158,2]
[346808999,1735301464824,-1890.51,0.00011158,2]
[346809000,1735301464833,-3838.06,0.00011158,2]
[346809001,1735301464843,-500.0,0.00011158,2]
[346809002,1735301464852,-500.0,0.00011158,2]
[346809003,1735301464861,-500.0,0.00011158,2]
[346809004,1735301464872,-500.0,0.00011158,2]
[346809005,1735301464881,-500.0,0.00011158,2]
[346809006,1735301464891,-530.17,0.00011158,2]
[346809007,1735301464899,-500.0,0.00011158,2]
[346809008,1735301464909,-500.0,0.00011158,2]
[346809009,1735301464918,-1761.14,0.00011158,2]
[346809010,1735301464928,-1640.29,0.00011158,2]
[346809011,1735301464938,-500.0,0.00011158,2]
[346809012,1735301464948,-1392.3,0.00011158,2]
[346809013,1735301464958,-1461.58,0.00011158,2]
[346809014,1735301464968,-500.0,0.00011158,2]
[346809015,1735301464978,-500.0,0.00011158,2]
[346809016,1735301464988,-1571.73,0.00011158,2]
[346809017,1735301464998,-500.0,0.00011158,2]
[346809018,1735301465008,-2049.24,0.00011158,2]
[346809019,1735301465017,-500.0,0.00011158,2]
[346809020,1735301465027,-1896.17,0.00011158,2]
[346809021,1735301465041,-1640.22,0.00011158,2]
[346809022,1735301465050,-1073.19,0.00011158,2]
[346809023,1735301465059,-616.99,0.00011158,2]
[346809024,1735301465068,-1437.04,0.00011158,2]
[346809025,1735301465077,-500.0,0.00011158,2]
[346809026,1735301465086,-562.39,0.00011158,2]
[346809027,1735301465096,-500.0,0.00011158,2]
[346809028,1735301465110,-500.0,0.00011158,2]
[346809029,1735301465122,-500.0,0.00011158,2]
[346809030,1735301465131,-752.5,0.00011158,2]
[346809031,1735301465141,-1929.26,0.00011158,2]
[346809032,1735301465152,-500.0,0.00011158,2]
[346809033,1735301465161,-905.62,0.00011158,2]
[346809034,1735301465171,-1087.2,0.00011158,2]
[346809035,1735301465182,-3133.95,0.00011158,2]
[346809036,1735301465192,-612.04,0.00011158,2]
[346809037,1735301465202,-500.0,0.00011158,2]
[346809038,1735301465212,-3746.22,0.00011158,2]
[346809039,1735301465222,-841.92,0.00011158,2]
[346809040,1735301465232,-688.55,0.00011158,2]
[346809041,1735301465241,-656.02,0.00011158,2]
[346809042,1735301465251,-500.0,0.00011158,2]
[346809043,1735301465261,-500.0,0.00011158,2]
[346809044,1735301465270,-500.0,0.00011158,2]
[346809045,1735301465280,-1869.93,0.00011158,2]
[346809046,1735301465290,-750.99,0.00011158,2]
[346809047,1735301465300,-565.06,0.00011158,2]
[346809048,1735301465309,-500.0,0.00011158,2]
[346809049,1735301465319,-500.0,0.00011158,2]
[346809050,1735301465329,-1067.61,0.00011158,2]
[346809051,1735301465339,-862.76,0.00011158,2]
[346809052,1735301465349,-500.0,0.00011158,2]
[346809053,1735301465359,-500.0,0.00011158,2]
[346809054,1735301465371,-1604.13,0.00011158,2]
[346809055,1735301465381,-3049.28,0.00011158,2]
[346809056,1735301465391,-500.0,0.00011158,2]
[346809057,1735301465401,-500.0,0.00011158,2]
[346809058,1735301465411,-1437.51,0.00011158,2]
[346809059,1735301465420,-500.0,0.00011158,2]
[346809060,1735301465430,-500.0,0.00011158,2]
[346809061,1735301465439,-569.81516305,0.00011158,2]
[346809062,1735301465449,-500.0,0.00011158,2]
[346809063,1735301465459,-500.0,0.00011158,2]
[346809064,1735301465469,-1034.54,0.00011158,2]
[346809065,1735301465478,-500.0,0.00011158,2]
[346809066,1735301465488,-803.49,0.00011158,2]
[346809067,1735301465498,-3283.04,0.00011158,2]
[346809068,1735301465508,-500.0,0.00011158,2]
[346809069,1735301465517,-1956.47,0.00011158,2]
[346809070,1735301465527,-1635.72,0.00011158,2]
[346809071,1735301465536,-500.0,0.00011158,2]
[346809072,1735301465547,-500.0,0.00011158,2]
[346809073,1735301465556,-5413.2,0.00011158,2]
[346809074,1735301465565,-500.0,0.00011158,2]
[346809075,1735301465574,-958.41,0.00011158,2]
[346809076,1735301465583,-3841.69,0.00011158,2]
[346809077,1735301465593,-500.0,0.00011158,2]
[346809078,1735301465602,-500.0,0.00011158,2]
[346809079,1735301465612,-3110.95,0.00011158,2]
[346809080,1735301465624,-500.0,0.00011158,2]
[346809081,1735301465634,-500.0,0.00011158,2]
[346809082,1735301465644,-508.86,0.00011158,2]
[346809083,1735301465654,-1289.82,0.00011158,2]
[346809084,1735301465663,-500.0,0.00011158,2]
[346809085,1735301465673,-1292.47,0.00011158,2]
[346809086,1735301465683,-152.76,0.00011158,2]
[346809087,1735301465694,-239.16702753,0.00011159,2]
[346809088,1735301465703,-500.0,0.00011159,2]
[346809089,1735301465713,-606.96380816,0.00011159,2]
[346809090,1735301465723,-500.0,0.00011159,2]
[346809091,1735301465733,-2000.0,0.00011159,2]
[346809092,1735301465743,-200.0,0.00011159,2]
[346809093,1735301465753,-500.0,0.00011159,2]
[346809094,1735301465763,-500.0,0.00011159,2]
[346809095,1735301465772,-500.0,0.00011159,2]
[346809096,1735301465782,-335.167647,0.00011159,2]
[346809097,1735301465791,-500.0,0.00011159,2]
[346809098,1735301465802,-500.0,0.00011159,2]
[346809099,1735301465812,-3974.71,0.00011159,2]
[346809100,1735301465822,-3486.18,0.00011159,2]
[346809101,1735301465832,-500.0,0.00011159,2]
[346809102,1735301465842,-825.69,0.00011159,2]
[346809103,1735301465851,-1727.91,0.00011159,2]
[346809104,1735301465861,-778.95,0.00011159,2]
[346809105,1735301465873,-500.0,0.00011159,2]
[346809106,1735301465882,-491.52257952,0.00011159,2]
[346809107,1735301465893,-500.0,0.00011159,2]
[346809108,1735301465903,-2304.51,0.00011159,2]
[346809109,1735301465913,-743.76,0.00011159,2]
[346809110,1735301465923,-1671.5,0.00011159,2]
[346809111,1735301465932,-1768.7,0.00011159,2]
[346809112,1735301465942,-6081.61,0.00011159,2]
[346809113,1735301465951,-500.0,0.00011159,2]
[346809114,1735301465962,-2619.16,0.00011159,2]
[346809115,1735301465971,-2156.2,0.00011159,2]
[346809116,1735301465980,-801.22,0.00011159,2]
[346809117,1735301465989,-801.22,0.00011159,2]
[346809118,1735301465999,-10641.78,0.00011159,2]
[346809119,1735301466008,-1804.85,0.00011159,2]
[346809120,1735301466019,-1655.38,0.00011159,2]
[346809121,1735301466028,-500.0,0.00011159,2]
[346809122,1735301466039,-636.31,0.00011159,2]
[346809123,1735301466049,-2671.63,0.00011159,2]
[346809124,1735301466059,-1891.51,0.00011159,2]
[346809125,1735301466069,-5051.29,0.00011159,2]
[346809126,1735301466078,-500.0,0.00011159,2]
[346809127,1735301466088,-2292.3,0.00011159,2]
[346809128,1735301466097,-2792.26,0.00011159,2]
[346809129,1735301466107,-2127.49,0.00011159,2]
[346809130,1735301466121,-10041.41,0.00011159,2]
[346809131,1735301466131,-500.0,0.00011159,2]
[346809132,1735301466140,-2672.98,0.00011159,2]
[346809133,1735301466150,-1338.43,0.00011159,2]
[346809134,1735301466162,-1334.59,0.00011159,2]
[346809135,1735301466171,-500.0,0.00011159,2]
[346809136,1735301466181,-500.0,0.00011159,2]
[346809137,1735301466192,-2330.28,0.00011159,2]
[346809138,1735301466202,-1544.61,0.00011159,2]
[346809139,1735301466211,-500.0,0.00011159,2]
[346809140,1735301466221,-2152.38,0.00011159,2]
[346809141,1735301466232,-1731.2,0.00011159,2]
[346809142,1735301466242,-4867.28,0.00011159,2]
[346809143,1735301466252,-3615.08,0.00011159,2]
[346809144,1735301466263,-2023.67,0.00011159,2]
[346809145,1735301466273,-1550.74,0.00011159,2]
[346809146,1735301466285,-1793.38,0.00011159,2]
[346809147,1735301466295,-3973.08,0.00011159,2]
[346809148,1735301466305,-1447.04,0.00011159,2]
[346809149,1735301466315,-3000.0,0.00011159,2]
[346809150,1735301466326,-18262.45,0.00011159,2]
[346809151,1735301466335,-500.0,0.00011159,2]
[346809152,1735301466345,-3399.28,0.00011159,2]
[346809153,1735301466354,-4274.47,0.00011159,2]
[346809154,1735301466365,-2159.51,0.00011159,2]
[346809155,1735301466375,-3731.09,0.00011159,2]
[346809156,1735301466385,-3878.32,0.00011159,2]
[346809157,1735301466395,-5296.22,0.00011159,2]
[346809158,1735301466404,-1268.34,0.00011159,2]
[346809159,1735301466414,-4059.65,0.00011159,2]
[346809160,1735301466424,-1506.56,0.00011159,2]
[346809161,1735301466434,-3222.86,0.00011159,2]
[346809162,1735301466445,-8982.26,0.00011159,2]
[346809163,1735301466456,-3393.93,0.00011159,2]
[346809164,1735301466465,-1854.75,0.00011159,2]
[346809165,1735301466476,-848.76,0.00011159,2]
[346809166,1735301466485,-5382.62,0.00011159,2]
[346809167,1735301466495,-625.46,0.00011159,2]
[346809168,1735301466505,-625.46,0.00011159,2]
[346809169,1735301466515,-6754.48,0.00011159,2]
[346809170,1735301466525,-2567.16,0.00011159,2]
[346809171,1735301466535,-671.91,0.00011159,2]
[346809172,1735301466545,-5737.43,0.00011159,2]
[346809173,1735301466555,-986.84,0.00011159,2]
[346809174,1735301466565,-4330.38,0.00011159,2]
[346809175,1735301466575,-1522.18,0.00011159,2]
[346809176,1735301466585,-8710.56,0.00011159,2]
[346809177,1735301466595,-500.0,0.00011159,2]
[346809178,1735301466605,-981.91,0.00011159,2]
[346809179,1735301466615,-651.99,0.0001116,2]
[346809180,1735301466626,-1519.58,0.0001116,2]
[346809181,1735301466638,-1430.85,0.0001116,2]
[346809182,1735301466648,-500.0,0.0001116,2]
[346809183,1735301466657,-500.0,0.0001116,2]
[346809184,1735301466666,-500.0,0.0001116,2]
[346809185,1735301466676,-500.0,0.0001116,2]
[346809186,1735301466686,-550.2,0.0001116,2]
[346809187,1735301466697,-1130.71,0.0001116,2]
[346809188,1735301466707,-528.22077262,0.0001116,2]
[346809189,1735301466717,-500.0,0.0001116,2]
[346809190,1735301466727,-702.89,0.0001116,2]
[346809191,1735301466738,-500.0,0.0001116,2]
[346809192,1735301466748,-639.83,0.0001116,2]
[346809193,1735301466758,-500.0,0.0001116,2]
[346809194,1735301466768,-500.0,0.0001116,2]
[346809195,1735301466779,-898.13,0.0001116,2]
[346809196,1735301466788,-500.0,0.0001116,2]
[346809197,1735301466799,-591.81,0.0001116,2]
[346809198,1735301466808,-852.63,0.0001116,2]
[346809199,1735301466818,-500.0,0.0001116,2]
[346809200,1735301466829,-500.0,0.0001116,2]
[346809201,1735301466839,-1393.59,0.0001116,2]
[346809202,1735301466849,-500.0,0.0001116,2]
[346809203,1735301466859,-500.0,0.0001116,2]
[346809204,1735301466870,-1087.19,0.0001116,2]
[346809205,1735301466880,-500.0,0.0001116,2]
[346809206,1735301466892,-500.0,0.0001116,2]
[346809207,1735301466901,-1249.54,0.0001116,2]
[346809208,1735301466912,-609.53396801,0.0001116,2]
[346809209,1735301466922,-1211.3,0.0001116,2]
[346809210,1735301466932,-500.0,0.0001116,2]
[346809211,1735301466942,-500.0,0.0001116,2]
[346809212,1735301466953,-150.0,0.0001116,2]
[346809213,1735301466963,-500.0,0.0001116,2]
[346809214,1735301466973,-1195.55,0.0001116,2]
[346809215,1735301466982,-500.0,0.0001116,2]
[346809216,1735301466992,-1053.83,0.0001116,2]
[346809217,1735301467003,-990.81,0.0001116,2]
[346809218,1735301467012,-500.0,0.0001116,2]
[346809219,1735301467022,-1513.76,0.0001116,2]
[346809220,1735301467032,-500.0,0.0001116,2]
[346809221,1735301467042,-500.0,0.0001116,2]
[346809222,1735301467051,-500.0,0.0001116,2]
[346809223,1735301467061,-500.0,0.0001116,2]
[346809224,1735301467072,-500.0,0.0001116,2]
[346809225,1735301467082,-942.28,0.0001116,2]
[346809226,1735301467092,-500.0,0.0001116,2]
[346809227,1735301467103,-684.58,0.0001116,2]
[346809228,1735301467116,-1433.55,0.0001116,2]
[346809229,1735301467334,-500.0,0.0001116,2]
[346809230,1735301467343,-500.0,0.0001116,2]
[346809231,1735301467354,-500.0,0.0001116,2]
[346809232,1735301467363,-500.0,0.0001116,2]
[346809233,1735301467374,-542.7,0.0001116,2]
[346809234,1735301467383,-1763.73,0.0001116,2]
[346809235,1735301467393,-500.0,0.0001116,2]
[346809236,1735301467403,-500.0,0.0001116,2]
[346809237,1735301467412,-500.0,0.0001116,2]
[346809238,1735301467422,-6380.58,0.0001116,2]
[346809239,1735301467431,-3662.8,0.0001116,2]
[346809240,1735301467441,-1660.88,0.0001116,2]
[346809241,1735301467451,-6172.4,0.0001116,2]
[346809242,1735301467460,-42968.78,0.0001116,2]
[346809243,1735301467468,-1553.57,0.0001116,2]
[346809244,1735301467478,-4910.15,0.0001116,2]
[346809245,1735301467487,-4256.29,0.0001116,2]
[346809246,1735301467497,-625.46,0.0001116,2]
[346809247,1735301467506,-2948.31,0.0001116,2]
[346809248,1735301467515,-9638.81,0.0001116,2]
[346809249,1735301467525,-6730.05,0.00011161,2]
[346809250,1735301467534,-801.22,0.00011161,2]
[346809251,1735301467544,-801.22,0.00011161,2]
[346809252,1735301467554,-801.22,0.00011161,2]
[346809253,1735301467563,-801.22,0.00011161,2]
[346809254,1735301467573,-801.22,0.00011161,2]
[346809255,1735301467583,-801.34531334,0.00011161,2]
[346809256,1735301467592,-806.38,0.00011161,2]
[346809257,1735301467602,-6389.14,0.00011161,2]
[346809258,1735301467612,-217.15249173,0.00011161,2]
[346809259,1735301467622,-1041.9,0.00011161,2]
[346809260,1735301467632,-625.46,0.00011161,2]
[346809261,1735301467642,-2363.25,0.00011161,2]
[346809262,1735301467651,-2759.63,0.00011161,2]
[346809263,1735301467660,-62913.7,0.00011161,2]
[346809264,1735301467670,-1937.6,0.00011161,2]
[346809265,1735301467680,-625.46,0.00011163,2]
[346809266,1735301467689,-150.0,0.00011184,2]
[346809267,1735301467699,-150.0,0.00011186,2]
[346809268,1735301467709,-625.46,0.00011191,2]
[346809269,1735301467718,-625.46,0.00011191,2]
[346809270,1735301467728,-625.46,0.00011191,2]
[346809271,1735301467737,-625.46,0.00011191,2]
[346809272,1735301467747,-625.46,0.00011191,2]
[346809273,1735301467756,-625.46,0.00011191,2]
[346809274,1735301467767,-625.46,0.00011191,2]
[346809275,1735301467777,-625.53,0.00011191,2]
[346809276,1735301467788,-9713.70467253,0.00011192,2]
[346809277,1735301467798,-274614.16468029,0.00011192,2]
[346809278,1735301468377,-7332.05558963,0.00011192,2]
[346809279,1735301468389,-574.11,0.00011192,2]
[346809280,1735301468513,-613.39,0.00010882,2]
[346809281,1735301468523,-14179.6089704,0.00011192,2]
[346809282,1735301468535,-2779.15190598,0.00011192,2]
[346809283,1735301468549,-384.111,0.00011192,2]
[346809284,1735301468560,-1957.704,0.00011192,2]
[346809285,1735301468589,-281.00881241,0.00011192,2]
[346809286,1735301468618,-500.83171567,0.00010883,2]
[346809287,1735301468628,-263383.0110854,0.00011192,2]
[346809288,1735301468639,-1648.3540861,0.00011192,2]
[346809352,1735301772922,5562.0,0.000126,5]
[346809353,1735301804323,1048.34155431,0.000126,5]
[346809354,1735301827728,-191.81,0.00010112,2]
[346809355,1735301827752,-270.39,0.00010137,2]
[346809356,1735301827775,-191.81,0.00010138,2]
[346809357,1735301827798,-191.81,0.00010163,2]
[346809358,1735301827821,-250.0,0.00010209,2]
[346809359,1735301827843,-1975.24,0.00010273,2]
[346809360,1735301827866,-657.7079,0.00010782,2]
[346809361,1735301827888,-1700.7811,0.00010782,2]